fUSD/lending_fUSD_20260105
["ID","MTS","AMOUNT","RATE_DAILY","PERIOD"]
[400484074,1767648639310,-300.0,0.00017985,2]
[400484075,1767648639319,-300.0,0.00017991,2]
[400484076,1767648639329,-300.0,0.00017996,2]
[400484077,1767648639339,-300.0,0.00017996,2]
[400484078,1767648639349,-300.0,0.00017997,2]
[400484079,1767648639358,-1744.6978015,0.00017998,2]
[400484080,1767648639368,-13532.9344625,0.00017998,2]
[400484081,1767648639378,-177469.1563051,0.00017998,2]
[400484082,1767648639387,-327.8668685,0.00017998,2]
[400484083,1767648639396,-156.1528589,0.00017998,2]
[400484084,1767648639405,-2634755.13754171,0.00018,2]
[400484085,1767648639421,-523.66243998,0.00018,2]
[400484086,1767648639432,-1496.048167,0.00018,2]
[400484087,1767648639443,-748.26893567,0.00018,2]
[400484088,1767648639453,-1888.38,0.00018,2]
[400484103,1767648640293,-1445.5556317,0.00017221,2]
[400484105,1767648640305,-697.900608,0.00017221,2]
[400484126,1767648643731,-166.32744346,0.0001722,2]
[400484127,1767648643740,-415449.73967298,0.00017221,2]
[400484130,1767648645909,-3030.75271145,0.00017221,2]
[400484131,1767648645920,-48129.62611205,0.00017221,2]
[400484132,1767648645970,-2134.87274842,0.00017221,2]
[400484133,1767648645982,-4816.59619096,0.00017221,2]
[400484134,1767648645997,-505.01796416,0.00017221,2]
[400484135,1767648646029,-1212.3478054,0.00017221,2]
[400484136,1767648646089,-13567.95713481,0.00017221,2]
[400484137,1767648646100,-10021.55529827,0.00017221,2]
[400484138,1767648646112,-1165.4,0.00017221,2]
[400484139,1767648646123,-1381.6,0.00017221,2]
[400484142,1767648670144,546.11961343,0.00014843,2]
[400484143,1767648823104,3546.45,0.00016438,2]
[400484144,1767649114281,500.0,0.00032876,120]
[400484145,1767649114510,500.0,0.00032876,120]
[400484146,1767649114750,500.0,0.00032876,120]
[400484147,1767649115013,500.0,0.00032876,120]
[400484148,1767649115468,500.0,0.00032876,120]
[400484149,1767649115715,500.0,0.00032876,120]
[400484150,1767649115947,495.08202681,0.00032876,120]
[400484152,1767649242578,169.91915114,0.00016496,2]
[400484153,1767649322547,2045.547251,0.0003,120]
[400484154,1767649340792,604.16,0.00016443,2]
[400484155,1767649415345,150.0,0.00016455,2]
[400484156,1767649439385,600.0,0.00032876,120]
[400484157,1767649642118,-1000.0,0.00016533,2]
[400484158,1767649642144,-27.2282354,0.00016543,2]
[400484160,1767649832073,-972.7717646,0.00016543,2]
[400484161,1767649832084,-200.0,0.00016596,2]
[400484162,1767649832097,-166.66,0.00016639,2]
[400484163,1767649832106,-1461.74,0.00016704,2]
[400484164,1767649832115,-999.0,0.00016711,3]
[400484165,1767649832124,-1037.4,0.00016986,2]
[400484166,1767649832135,-166.66,0.00016989,2]
[400484167,1767649832144,-250.0,0.00017,2]
[400484168,1767649832153,-1200.0,0.0001712,2]
[400484169,1767649832162,-167.14787861,0.0001712,2]
[400484170,1767649832172,-798.83601585,0.00017121,2]
[400484171,1767649832183,-1701.16398415,0.00017121,2]
[400484172,1767649832194,-7544.27358201,0.00017121,2]
[400484173,1767649832211,-28889.3591975,0.00017121,2]
[400484174,1767649832223,-9821.96422307,0.00017121,2]
[400484175,1767649832244,-1887.52207154,0.00017121,2]
[400484180,1767649838345,-491.21397202,0.00017121,2]
[400484181,1767649838374,-24480.72825386,0.00017121,2]
[400484183,1767649838384,-917.4,0.00017121,2]
[400484185,1767649838393,-500.0,0.00017151,2]
[400484187,1767649838403,-1000.0,0.00017153,2]
[400484189,1767649838412,-166.68,0.00017186,2]
[400484191,1767649838422,-511.13510878,0.0001722,2]
[400484193,1767649838431,-157.64105094,0.00017221,2]
[400484194,1767649838440,-1000.0,0.00017221,2]
[400484195,1767649838450,-166.66,0.0001734,2]
[400484196,1767649838460,-151.0,0.00017355,2]
[400484197,1767649838469,-500.0,0.00017534,7]
[400484198,1767649838479,-700.0,0.00017534,7]
[400484199,1767649838488,-500.0,0.00017534,7]
[400484200,1767649838498,-501.70391837,0.00017573,2]
[400484201,1767649838508,-500.0,0.00017573,2]
[400484202,1767649838518,-500.0,0.00017573,2]
[400484203,1767649838527,-500.0,0.00017573,2]
[400484204,1767649838538,-500.0,0.00017573,2]
[400484205,1767649838547,-500.0,0.00017573,2]
[400484206,1767649838556,-500.0,0.00017573,2]
[400484207,1767649838565,-218.2586549,0.00017573,2]
[400484208,1767649838575,-500.0,0.00017573,2]
[400484209,1767649838584,-500.0,0.00017573,2]
[400484210,1767649838594,-500.0,0.00017573,2]
[400484211,1767649838603,-635.71123212,0.00017573,2]
[400484212,1767649838613,-319.58,0.00017573,2]
[400484213,1767649838623,-500.0,0.00017605,2]
[400484214,1767649838632,-150.0,0.00017605,2]
[400484215,1767649838642,-281.0,0.00017614,2]
[400484216,1767649838651,-661.59434262,0.0001764,2]
[400484217,1767649838660,-168.0,0.00017653,2]
[400484218,1767649838670,-507.67119462,0.0001766,2]
[400484219,1767649838679,-168.0,0.00017686,2]
[400484220,1767649838688,-166.66,0.0001769,2]
[400484221,1767649838698,-168.0,0.00017692,2]
[400484222,1767649838708,-300.0,0.00017702,2]
[400484223,1767649838718,-300.0,0.00017703,2]
[400484224,1767649838727,-300.0,0.00017703,2]
[400484225,1767649838736,-300.0,0.0001772,2]
[400484226,1767649838746,-300.0,0.00017728,2]
[400484227,1767649838755,-166.76733553,0.00017733,2]
[400484228,1767649838765,-300.0,0.00017734,2]
[400484229,1767649838774,-300.0,0.00017751,2]
[400484230,1767649838783,-300.0,0.00017759,2]
[400484231,1767649838793,-300.0,0.00017767,2]
[400484232,1767649838802,-300.0,0.00017768,2]
[400484233,1767649838811,-152.13369377,0.00017772,2]
[400484234,1767649838820,-1000.0,0.00017773,2]
[400484235,1767649838830,-300.0,0.00017773,2]
[400484236,1767649838840,-300.0,0.00017777,2]
[400484237,1767649838849,-300.0,0.00017781,2]
[400484238,1767649838859,-1218.4482504,0.00017783,2]
[400484239,1767649838868,-169.90099311,0.00017783,2]
[400484240,1767649838878,-300.0,0.00017784,2]
[400484241,1767649838887,-300.0,0.00017785,2]
[400484242,1767649839146,-300.0,0.00017787,2]
[400484243,1767649839168,-300.0,0.00017794,2]
[400484244,1767649839178,-1218.44825035,0.00017796,2]
[400484245,1767649839187,-300.0,0.00017799,2]
[400484246,1767649839197,-300.0,0.00017803,2]
[400484247,1767649839206,-1218.44825035,0.00017809,2]
[400484248,1767649839216,-300.0,0.00017811,2]
[400484249,1767649839226,-300.0,0.00017813,2]
[400484250,1767649839236,-300.0,0.00017818,2]
[400484251,1767649839246,-246.68541,0.0001782,2]
[400484252,1767649839256,-246.68541,0.0001782,2]
[400484253,1767649839266,-300.0,0.00017822,2]
[400484254,1767649839275,-1218.44825035,0.00017822,2]
[400484255,1767649839285,-300.0,0.00017828,2]
[400484256,1767649839295,-436.215,0.0001783,2]
[400484257,1767649839304,-246.68542,0.0001783,2]
[400484258,1767649839315,-300.0,0.00017833,2]
[400484259,1767649839324,-1218.44825035,0.00017835,2]
[400484260,1767649839334,-300.0,0.00017837,2]
[400484261,1767649839344,-300.0,0.00017839,2]
[400484262,1767649839354,-300.0,0.0001784,2]
[400484263,1767649839365,-300.0,0.00017844,2]
[400484264,1767649839376,-319.58,0.00017847,2]
[400484265,1767649839386,-300.0,0.00017848,2]
[400484266,1767649839396,-1218.44825035,0.00017848,2]
[400484267,1767649839406,-300.0,0.00017849,2]
[400484268,1767649839416,-300.0,0.00017854,2]
[400484269,1767649839425,-300.0,0.00017855,2]
[400484270,1767649839435,-300.0,0.00017857,2]
[400484271,1767649839445,-246.68541,0.0001786,2]
[400484272,1767649839456,-1218.44825035,0.00017861,2]
[400484273,1767649839465,-300.0,0.00017863,2]
[400484274,1767649839475,-300.0,0.00017873,2]
[400484275,1767649839485,-300.0,0.00017874,2]
[400484276,1767649839494,-1218.44825035,0.00017874,2]
[400484277,1767649839506,-300.0,0.00017878,2]
[400484278,1767649839515,-246.68541,0.0001788,2]
[400484279,1767649839525,-300.0,0.00017881,2]
[400484280,1767649839534,-309847.9692744,0.00017883,2]
[400484281,1767649839544,-1939.5996328,0.00017883,2]
[400484282,1767649839554,-3518.2096242,0.00017883,2]
[400484283,1767649839563,-300.0,0.00017884,2]
[400484284,1767649839572,-267.969,0.00017886,2]
[400484285,1767649839582,-300.0,0.00017886,2]
[400484286,1767649839592,-300.0,0.0001789,2]
[400484287,1767649839602,-300.0,0.00017897,2]
[400484288,1767649839612,-300.0,0.00017899,2]
[400484289,1767649839622,-176.00373244,0.000179,2]
[400484290,1767649839631,-300.0,0.000179,2]
[400484291,1767649839641,-181.45660226,0.000179,2]
[400484292,1767649839650,-811.58755505,0.000179,2]
[400484293,1767649839659,-300.0,0.00017904,2]
[400484294,1767649839669,-300.0,0.00017904,2]
[400484295,1767649839679,-246.68542,0.0001791,2]
[400484296,1767649839688,-300.0,0.00017914,2]
[400484297,1767649839697,-300.0,0.00017914,2]
[400484298,1767649839707,-300.0,0.00017927,2]
[400484299,1767649839716,-300.0,0.00017939,2]
[400484300,1767649839726,-300.0,0.0001794,2]
[400484301,1767649839736,-300.0,0.00017946,2]
[400484302,1767649839746,-300.0,0.00017951,2]
[400484303,1767649839756,-300.0,0.00017952,2]
[400484304,1767649839766,-300.0,0.00017955,2]
[400484305,1767649839776,-300.0,0.0001796,2]
[400484306,1767649839786,-300.0,0.00017963,2]
[400484307,1767649839797,-300.0,0.00017965,2]
[400484308,1767649839806,-700.0,0.0001797,2]
[400484309,1767649839815,-769.69537038,0.0001797,2]
[400484310,1767649839825,-700.0,0.0001797,2]
[400484311,1767649839834,-700.0,0.0001797,2]
[400484312,1767649839844,-734.12091575,0.0001797,2]
[400484313,1767649839854,-300.0,0.00017972,2]
[400484314,1767649839863,-215.11491997,0.00017973,2]
[400484315,1767649839873,-500.0,0.00017973,2]
[400484316,1767649839882,-336.03289894,0.00017973,2]
[400484317,1767649839892,-500.0,0.00017997,2]
[400484318,1767649839902,-1628503.66422972,0.00018,2]
[400484319,1767649839911,-920360.92510241,0.00018,2]
[400484320,1767649839923,-4125.73666421,0.00018,2]
[400484321,1767649839934,-20274.93599447,0.00018,2]
[400484324,1767649840287,-38049.9133807,0.00017882,2]
[400484325,1767649840296,-116734.3281727,0.00018,2]
[400484326,1767649840308,-29244.60056734,0.00018,2]
[400484369,1767649843792,-151.0,0.00017443,2]
[400484370,1767649843802,-1218.44825035,0.00017887,2]
[400484371,1767649843811,-7003.84490272,0.00018,2]
[400484372,1767649844626,-4451.14455791,0.00018,2]
[400484376,1767649846248,-1218.44825035,0.000179,2]
[400484377,1767649846258,-29236.4410367,0.00018,2]
[400484379,1767649933913,354.6377,0.00016443,2]
[400484380,1767650364934,11598.185093,0.00032876,120]
[400484381,1767650611176,150.0,0.00016303,2]
[400484382,1767650655082,165.24,0.00016276,2]
[400484394,1767650760623,200.0,0.00016245,2]
[400484395,1767650873938,573.0,0.00013699,2]
[400484399,1767651032229,-500.0,0.00016758,2]
[400484401,1767651032240,-158.50652217,0.00016762,2]
[400484403,1767651032251,-621.98,0.00016777,2]
[400484404,1767651032262,-405.81282974,0.00016821,2]
[400484405,1767651032273,-2498.670317,0.000169,2]
[400484406,1767651032283,-405.81282972,0.00016905,2]
[400484407,1767651032293,-2500.0,0.00016921,2]
[400484408,1767651032303,-7304.80599004,0.00016921,2]
[400484409,1767651032315,-454.69711136,0.00016921,2]
[400484410,1767651032328,-2450.9437083,0.00016921,2]
[400484411,1767651032341,-5722.72505615,0.00016921,2]
[400484412,1767651032358,-3668.11136025,0.00016921,2]
[400484413,1767651032371,-969.61981694,0.00016921,2]
[400484414,1767651032383,-292.63624445,0.00016921,2]
[400484415,1767651032447,-343452.65936884,0.00016921,2]
[400484416,1767651032459,-309892.13068107,0.00016921,2]
[400484417,1767651032472,-30815.30048063,0.00016921,2]
[400484418,1767651032490,-12949.78783934,0.00016921,2]
[400484419,1767651032504,-31258.47076508,0.00016921,2]
[400484420,1767651032518,-34230.91238379,0.00016921,2]
[400484422,1767651032530,-931.88157675,0.00016921,2]
[400484425,1767651032542,-399.30784984,0.00016921,2]
[400484427,1767651032555,-3293.30861604,0.00016921,2]
[400484429,1767651032567,-9841.3503795,0.00016921,2]
[400484466,1767651038423,-202071.35077163,0.00016921,2]
[400484467,1767651038433,-174.06977329,0.00016988,2]
[400484468,1767651038445,-974.75860033,0.00016988,2]
[400484469,1767651038454,-599.02829105,0.00016988,2]
[400484470,1767651038464,-405.81282972,0.00016988,2]
[400484471,1767651038473,-2282.92720553,0.00016988,2]
[400484472,1767651038482,-167.09293973,0.00016988,2]
[400484473,1767651038493,-250.0,0.00017,2]
[400484474,1767651038502,-550.0,0.00017019,2]
[400484475,1767651038512,-302.499,0.0001702,2]
[400484476,1767651038524,-511.13510878,0.0001702,2]
[400484477,1767651038534,-208.64058908,0.0001702,2]
[400484478,1767651038543,-161.02663267,0.0001702,2]
[400484479,1767651038553,-500.0,0.0001702,2]
[400484480,1767651038562,-500.0,0.0001702,2]
[400484481,1767651038572,-500.0,0.0001702,2]
[400484482,1767651038581,-205.59760403,0.0001702,2]
[400484483,1767651038591,-157.64105094,0.00017021,2]
[400484485,1767651038600,-500.0,0.00017021,2]
[400484486,1767651038609,-4633.56,0.00017088,2]
[400484487,1767651038618,-974.75860028,0.00017089,2]
[400484488,1767651038631,-599.028291,0.00017089,2]
[400484489,1767651038643,-211.44,0.00017105,2]
[400484490,1767651038653,-974.75860028,0.00017191,2]
[400484491,1767651038662,-599.028291,0.00017191,2]
[400484492,1767651038671,-244.0,0.00017243,2]
[400484493,1767651038680,-228.48,0.00017255,2]
[400484494,1767651038690,-151.0,0.00017255,2]
[400484495,1767651038699,-151.0,0.0001726,2]
[400484496,1767651038708,-244.0,0.00017261,2]
[400484497,1767651038718,-244.0,0.00017286,2]
[400484498,1767651038727,-974.75860028,0.00017292,2]
[400484499,1767651038737,-599.028291,0.00017292,2]
[400484500,1767651038746,-244.0,0.00017351,2]
[400484501,1767651038755,-974.75860028,0.00017393,2]
[400484502,1767651038765,-599.028291,0.00017393,2]
[400484503,1767651038775,-244.0,0.00017402,2]
[400484504,1767651038786,-244.0,0.00017474,2]
[400484505,1767651038795,-974.75860028,0.00017495,2]
[400484506,1767651038804,-599.028291,0.00017495,2]
[400484507,1767651038813,-500.0,0.00017534,7]
[400484508,1767651038822,-700.0,0.00017534,7]
[400484509,1767651038831,-500.0,0.00017534,7]
[400484510,1767651038841,-500.0,0.00017573,2]
[400484511,1767651038850,-501.70391837,0.00017573,2]
[400484512,1767651038859,-500.0,0.00017573,2]
[400484513,1767651038868,-500.0,0.00017573,2]
[400484514,1767651038878,-500.0,0.00017573,2]
[400484515,1767651038886,-500.0,0.00017573,2]
[400484516,1767651038895,-218.2586549,0.00017573,2]
[400484517,1767651038904,-500.0,0.00017573,2]
[400484518,1767651038914,-500.0,0.00017573,2]
[400484519,1767651038923,-500.0,0.00017573,2]
[400484520,1767651038932,-635.71123212,0.00017573,2]
[400484521,1767651038941,-500.0,0.00017573,2]
[400484522,1767651038951,-319.58,0.00017573,2]
[400484523,1767651038960,-974.75860028,0.00017596,2]
[400484524,1767651038969,-599.028291,0.00017596,2]
[400484525,1767651038979,-244.0,0.00017604,2]
[400484526,1767651038988,-296.56,0.00017604,2]
[400484527,1767651038998,-150.0,0.00017605,2]
[400484528,1767651039007,-500.0,0.00017605,2]
[400484529,1767651039016,-165.24,0.00017633,2]
[400484530,1767651039026,-661.59434262,0.0001764,2]
[400484531,1767651039035,-507.67119462,0.0001766,2]
[400484532,1767651039044,-974.75860028,0.00017697,2]
[400484533,1767651039053,-599.028291,0.00017697,2]
[400484534,1767651039063,-300.0,0.00017725,2]
[400484535,1767651039072,-300.0,0.00017751,2]
[400484536,1767651039081,-300.0,0.00017752,2]
[400484537,1767651039090,-244.0,0.00017753,2]
[400484538,1767651039099,-300.0,0.00017755,2]
[400484539,1767651039109,-300.0,0.00017758,2]
[400484540,1767651039118,-1225.0,0.00017764,2]
[400484541,1767651039127,-300.0,0.0001777,2]
[400484542,1767651039135,-152.13369377,0.00017776,2]
[400484543,1767651039145,-300.0,0.00017781,2]
[400484544,1767651039154,-1000.0,0.00017783,2]
[400484545,1767651039163,-300.0,0.00017791,2]
[400484546,1767651039172,-300.0,0.00017796,2]
[400484547,1767651039181,-974.75860028,0.00017799,2]
[400484548,1767651039191,-599.028291,0.00017799,2]
[400484549,1767651039200,-300.0,0.00017817,2]
[400484550,1767651039210,-162.96025,0.0001782,2]
[400484551,1767651039220,-162.96026,0.0001782,2]
[400484552,1767651039229,-300.0,0.00017822,2]
[400484553,1767651039239,-300.0,0.00017826,2]
[400484554,1767651039248,-436.215,0.0001783,2]
[400484555,1767651039257,-162.96026,0.0001783,2]
[400484556,1767651039267,-3690.937,0.0001783,2]
[400484557,1767651039276,-6548.0,0.0001783,2]
[400484558,1767651039285,-2435.0,0.0001783,2]
[400484559,1767651039294,-300.0,0.0001784,2]
[400484560,1767651039304,-319.58,0.00017847,2]
[400484561,1767651039313,-162.96026,0.0001786,2]
[400484562,1767651039323,-300.0,0.00017862,2]
[400484563,1767651039332,-300.0,0.00017865,2]
[400484564,1767651039341,-162.96026,0.0001788,2]
[400484565,1767651039351,-974.75860028,0.000179,2]
[400484566,1767651039364,-599.028291,0.000179,2]
[400484567,1767651039373,-181.45660226,0.000179,2]
[400484568,1767651039383,-811.58755505,0.000179,2]
[400484569,1767651039391,-300.0,0.00017908,2]
[400484570,1767651039401,-300.0,0.00017908,2]
[400484571,1767651039410,-300.0,0.00017909,2]
[400484572,1767651039419,-162.96026,0.0001791,2]
[400484573,1767651039429,-244.0,0.00017932,2]
[400484574,1767651039438,-300.0,0.00017936,2]
[400484575,1767651039450,-300.0,0.00017936,2]
[400484576,1767651039460,-244.0,0.00017938,2]
[400484577,1767651039469,-211.44,0.0001796,2]
[400484578,1767651039479,-300.0,0.00017962,2]
[400484579,1767651039489,-1225.0,0.00017964,2]
[400484580,1767651039499,-300.0,0.00017967,2]
[400484581,1767651039508,-300.0,0.00017968,2]
[400484582,1767651039520,-769.69537038,0.0001797,2]
[400484583,1767651039528,-700.0,0.0001797,2]
[400484584,1767651039538,-700.0,0.0001797,2]
[400484585,1767651039548,-700.0,0.0001797,2]
[400484586,1767651039558,-734.12091575,0.0001797,2]
[400484587,1767651039567,-215.11491997,0.00017973,2]
[400484588,1767651039577,-500.0,0.00017973,2]
[400484589,1767651039587,-336.03289894,0.00017973,2]
[400484590,1767651039596,-237.2301596,0.00017988,2]
[400484591,1767651039605,-388.33041483,0.00017992,2]
[400484592,1767651039615,-300.0,0.00017997,2]
[400484593,1767651039624,-1939.5996328,0.00017998,2]
[400484594,1767651039633,-246179.5408834,0.00017998,2]
[400484595,1767651039643,-66432.3234389,0.00017998,2]
[400484596,1767651039653,-1869.10634115,0.00017999,5]
[400484597,1767651039662,-1043.36845007,0.00017999,5]
[400484598,1767651039672,-3827.01255226,0.00017999,2]
[400484599,1767651039681,-1110324.07398192,0.00018,2]
[400484600,1767651039691,-1187.72537298,0.00018,2]
[400484601,1767651039700,-160.47,0.00018,7]
[400484602,1767651039710,-5800.0,0.00018,2]
[400484603,1767651039719,-1228316.74962483,0.00018,2]
[400484604,1767651039733,-1000.0,0.00018,2]
[400484605,1767651039744,-354.0347142,0.00018,2]
[400484606,1767651039760,-6993.94538495,0.00018,2]
[400484609,1767651040369,-543.74,0.00018,2]
[400484610,1767651040380,-51198.60562156,0.00018,2]
[400484611,1767651040391,-707.12359549,0.00018,2]
[400484612,1767651040536,-38683.1044579,0.00018,2]
[400484613,1767651040594,-940.044686,0.00018,2]
[400484614,1767651040707,-1134.21112236,0.00018,2]
[400484626,1767651046293,-166.76733553,0.0001692,2]
[400484627,1767651046302,-637.35965239,0.0001692,2]
[400484628,1767651046312,-222.52033252,0.0001692,2]
[400484629,1767651046321,-151.0,0.00017333,2]
[400484630,1767651046331,-1200.0,0.0001783,2]
[400484631,1767651046342,-242.73179265,0.00018,2]
[400484636,1767651100724,400.0,0.00032876,120]
[400484637,1767651101924,500.0,0.00032876,120]
[400484638,1767651102151,264.0,0.00032876,120]
[400484639,1767651107822,400.0,0.00032876,120]
[400484640,1767651117919,400.0,0.00032876,120]
[400484641,1767651118187,424.29773737,0.00032876,120]
[400484642,1767651121507,500.0,0.00032876,120]
[400484643,1767651121812,500.0,0.00032876,120]
[400484644,1767651122050,500.0,0.00032876,120]
[400484645,1767651126059,400.0,0.00032876,120]
[400484646,1767651131809,400.0,0.00032876,120]
[400484647,1767651136980,200.0,0.00032876,120]
[400484648,1767651146327,400.0,0.00032876,120]
[400484649,1767651148171,500.0,0.00032876,120]
[400484650,1767651148396,500.0,0.00032876,120]
[400484651,1767651148637,500.0,0.00032876,120]
[400484652,1767651151888,400.0,0.00032876,120]
[400484653,1767651154760,400.0,0.00032876,120]
[400484654,1767651157949,400.0,0.00032876,120]
[400484655,1767651161314,205.725046,0.00032876,120]
[400484656,1767651165089,300.0,0.00032876,120]
[400484657,1767651165234,400.0,0.00032876,120]
[400484658,1767651166157,400.0,0.00032876,120]
[400484659,1767651169668,210.02142568,0.00032876,120]
[400484660,1767651173461,400.0,0.00032876,120]
[400484661,1767651178221,324.65,0.00032876,120]
[400484662,1767651183991,400.0,0.00032876,120]
[400484663,1767651185026,172.2973042,0.00032876,120]
[400484664,1767651185671,300.0,0.00032876,120]
[400484665,1767651187546,400.0,0.00032876,120]
[400484666,1767651196187,300.0,0.00032876,120]
[400484667,1767651199886,401.81646368,0.00032876,120]
[400484668,1767651202345,300.0,0.00032876,120]
[400484669,1767651202998,400.0,0.00032876,120]
[400484670,1767651203820,578.92022945,0.00032876,120]
[400484671,1767651208377,448.26401351,0.00032876,120]
[400484672,1767651216821,300.0,0.00032876,120]
[400484673,1767651221767,300.0,0.00032876,120]
[400484674,1767651229285,300.0,0.00032876,120]
[400484675,1767651234721,500.0,0.00032876,120]
[400484676,1767651239151,300.0,0.00032876,120]
[400484677,1767651240933,400.0,0.00032876,120]
[400484678,1767651241044,400.0,0.00032876,120]
[400484679,1767651246062,400.0,0.00032876,120]
[400484680,1767651263706,334.10645596,0.00032876,120]
[400484681,1767651280833,400.0,0.00032876,120]
[400484682,1767651308900,500.0,0.00032876,120]
[400484683,1767651309118,631.41,0.00032876,120]
[400484684,1767651327084,300.0,0.00032876,120]
[400484685,1767651330951,341.93,0.00032876,120]
[400484686,1767651331618,400.0,0.00032876,120]
[400484687,1767651351906,500.0,0.00032876,120]
[400484688,1767651352166,500.0,0.00032876,120]
[400484689,1767651352422,500.0,0.00032876,120]
[400484690,1767651352655,589.11,0.00032876,120]
[400484691,1767651371686,400.0,0.00032876,120]
[400484692,1767651372556,817.0,0.00017808,32]
[400484693,1767651374767,400.0,0.00032876,120]
[400484694,1767651375474,200.0,0.00032876,120]
[400484695,1767651379389,222.93424786,0.00032876,120]
[400484696,1767651396454,400.0,0.00032876,120]
[400484697,1767651402386,306.21,0.00032876,120]
[400484698,1767651423656,3406.26,0.00016438,2]
[400484699,1767651445368,300.0,0.00032876,120]
[400484700,1767651448943,426.4,0.00032876,120]
[400484701,1767651451014,400.0,0.00032876,120]
[400484702,1767651456160,220.47,0.00032876,120]
[400484703,1767651458234,300.0,0.00032876,120]
[400484704,1767651469002,176.43,0.00032876,120]
[400484705,1767651469645,447.28395637,0.00032876,120]
[400484706,1767651471577,300.0,0.00032876,120]
[400484707,1767651474762,342.76,0.00032876,120]
[400484708,1767651485993,300.0,0.00032876,120]
[400484709,1767651491129,300.0,0.00032876,120]
[400484710,1767651558315,300.0,0.00032876,120]
[400484711,1767651640439,600.0,0.00032876,120]
[400484712,1767651673681,439.09000515,0.00032876,120]
[400484713,1767651682045,500.0,0.00032876,120]
[400484714,1767651684804,-654.760281,0.00016511,2]
[400484715,1767651684827,-200.0,0.00016553,2]
[400484716,1767651684850,-986.25,0.00016595,2]
[400484717,1767651684872,-213.35471522,0.00016721,2]
[400484718,1767651684895,-213.35471522,0.00016771,2]
[400484719,1767651684918,-300.0,0.0001682,2]
[400484720,1767651684941,-350.392,0.0001682,2]
[400484721,1767651684964,-213.35471522,0.00016821,2]
[400484722,1767651684987,-174.06977329,0.00016821,2]
[400484723,1767651685009,-599.02829105,0.00016821,2]
[400484724,1767651685032,-2282.92720553,0.00016821,2]
[400484725,1767651685054,-166.66,0.00016838,2]
[400484726,1767651685076,-360.48,0.0001691,3]
[400484727,1767651685098,-550.0,0.00016919,2]
[400484728,1767651685121,-511.13510878,0.00016919,2]
[400484729,1767651685148,-189.51084489,0.00016919,2]
[400484730,1767651685171,-161.02663267,0.00016919,2]
[400484731,1767651685193,-208.64058908,0.00016919,2]
[400484732,1767651685219,-500.0,0.00016919,2]
[400484733,1767651685243,-500.0,0.00016919,2]
[400484734,1767651685268,-535.03784363,0.00016919,2]
[400484735,1767651685294,-500.0,0.00016919,2]
[400484736,1767651685319,-500.0,0.00016919,2]
[400484737,1767651685344,-500.0,0.00016919,2]
[400484738,1767651685369,-500.0,0.00016919,2]
[400484739,1767651685393,-432.98799237,0.00016919,2]
[400484740,1767651685415,-500.0,0.0001692,2]
[400484741,1767651685441,-727197.02929205,0.0001692,2]
[400484742,1767651686585,500.0,0.00032876,120]
[400484743,1767651686824,304.9556437,0.00032876,120]
[400484744,1767651689613,500.0,0.00032876,120]
[400484745,1767651691218,400.0,0.00032876,120]
[400484746,1767651693858,444.36310134,0.00032876,120]
[400484747,1767651696436,500.0,0.00032876,120]